[Event "Early-Titled-Tuesday-Blitz-March-26-2024"]
[Site "Chess.com"]
[Date "2024.03.26"]
[Round "4"]
[White "Better_Chess_Faster"]
[Black "Khromkin"]
[Result "0-1"]
[WhiteElo "2162"]
[BlackElo "2427"]
[TimeControl "180+1"]
[EndTime "8:35:12 PDT"]
[Termination "Khromkin won by checkmate"]

1. e4 {[%clk 0:03:00.9]} 1... c5 {[%clk 0:02:59.6]} 2. Nf3 {[%clk 0:03:00.5]}
2... Nc6 {[%clk 0:03:00.1]} 3. d4 {[%clk 0:03:00.2]} 3... cxd4 {[%clk
0:03:00.8]} 4. Nxd4 {[%clk 0:03:01]} 4... g6 {[%clk 0:03:01.4]} 5. Nc3 {[%clk
0:02:59]} 5... Bg7 {[%clk 0:03:01.9]} 6. Be3 {[%clk 0:02:58.3]} 6... Nf6 {[%clk
0:03:02.5]} 7. Bc4 {[%clk 0:02:57.5]} 7... O-O {[%clk 0:03:01.7]} 8. Bb3 {[%clk
0:02:57.5]} 8... a5 {[%clk 0:03:01.3]} 9. a4 {[%clk 0:02:56.3]} 9... Ng4 {[%clk
0:03:00.6]} 10. Nxc6 {[%clk 0:02:54.3]} 10... Nxe3 {[%clk 0:02:59.7]} 11. Nxd8
{[%clk 0:02:52.8]} 11... Nxd1 {[%clk 0:02:59.4]} 12. Rxd1 {[%clk 0:02:39.3]}
12... Bxc3+ {[%clk 0:02:58.1]} 13. bxc3 {[%clk 0:02:39.1]} 13... Rxd8 {[%clk
0:02:58.6]} 14. e5 {[%clk 0:02:35.6]} 14... Ra6 {[%clk 0:02:54.3]} 15. O-O
{[%clk 0:02:29.2]} 15... Rc6 {[%clk 0:02:51.8]} 16. Rd5 {[%clk 0:02:22.6]} 16...
b6 {[%clk 0:02:48]} 17. Rfd1 {[%clk 0:02:10.3]} 17... Rxc3 {[%clk 0:02:46.3]}
18. Rb5 {[%clk 0:02:03]} 18... Rc6 {[%clk 0:02:41.2]} 19. f4 {[%clk 0:01:58.2]}
19... d6 {[%clk 0:02:24.9]} 20. e6 {[%clk 0:01:53.6]} 20... Bxe6 {[%clk
0:02:21.2]} 21. Bxe6 {[%clk 0:01:52.6]} 21... fxe6 {[%clk 0:02:21.8]} 22. Rdb1
{[%clk 0:01:45.4]} 22... Rxc2 {[%clk 0:02:14.3]} 23. Rxb6 {[%clk 0:01:44.9]}
23... Rc4 {[%clk 0:02:14.7]} 24. Rb7 {[%clk 0:01:42.8]} 24... Kf7 {[%clk
0:02:14.3]} 25. Ra7 {[%clk 0:01:41.7]} 25... Rxa4 {[%clk 0:02:12.8]} 26. Rbb7
{[%clk 0:01:39.3]} 26... Re8 {[%clk 0:02:11.5]} 27. Rb5 {[%clk 0:01:39.1]} 27...
Rxf4 {[%clk 0:02:10.1]} 28. Raxa5 {[%clk 0:01:34.6]} 28... Rc8 {[%clk
0:02:08.5]} 29. h3 {[%clk 0:01:31]} 29... Rc2 {[%clk 0:02:05.1]} 30. Rb7 {[%clk
0:01:26.6]} 30... Rff2 {[%clk 0:02:02.5]} 31. Raa7 {[%clk 0:01:26.1]} 31...
Rxg2+ {[%clk 0:02:02.4]} 32. Kf1 {[%clk 0:01:25.2]} 32... Rgf2+ {[%clk
0:01:54.1]} 33. Kg1 {[%clk 0:01:25.1]} 33... Rfd2 {[%clk 0:01:53.2]} 34. Rxe7+
{[%clk 0:01:24.3]} 34... Kf6 {[%clk 0:01:53.7]} 35. Rf7+ {[%clk 0:01:23.7]}
35... Ke5 {[%clk 0:01:53.3]} 36. Rf1 {[%clk 0:01:23.1]} 36... Rg2+ {[%clk
0:01:53.1]} 37. Kh1 {[%clk 0:01:19]} 37... Rh2+ {[%clk 0:01:53.6]} 38. Kg1
{[%clk 0:01:19.1]} 38... Rcg2# {[%clk 0:01:54.2]} 0-1

[Event "Early-Titled-Tuesday-Blitz-March-26-2024"]
[Site "Chess.com"]
[Date "2024.03.26"]
[Round "4"]
[White "CFalcons8"]
[Black "Winner_7777"]
[Result "0-1"]
[WhiteElo "2400"]
[BlackElo "2581"]
[TimeControl "180+1"]
[EndTime "8:35:13 PDT"]
[Termination "Winner_7777 won by resignation"]

1. d4 {[%clk 0:02:59.5]} 1... d5 {[%clk 0:02:59.9]} 2. c4 {[%clk 0:02:59.6]}
2... e6 {[%clk 0:03:00.3]} 3. Nc3 {[%clk 0:02:59.8]} 3... c6 {[%clk 0:03:00.8]}
4. Nf3 {[%clk 0:03:00]} 4... dxc4 {[%clk 0:03:00.6]} 5. a4 {[%clk 0:02:58.6]}
5... Bb4 {[%clk 0:02:59.6]} 6. e3 {[%clk 0:02:58.2]} 6... b5 {[%clk 0:02:59.8]}
7. Bd2 {[%clk 0:02:55.9]} 7... a5 {[%clk 0:02:58.7]} 8. b3 {[%clk 0:02:56.1]}
8... Bxc3 {[%clk 0:02:57.8]} 9. Bxc3 {[%clk 0:02:56.2]} 9... b4 {[%clk 0:02:58]}
10. Bd2 {[%clk 0:02:52.6]} 10... c3 {[%clk 0:02:58.3]} 11. Bc1 {[%clk
0:02:53.3]} 11... Nf6 {[%clk 0:02:58.4]} 12. Bd3 {[%clk 0:02:53.3]} 12... O-O
{[%clk 0:02:58]} 13. Qc2 {[%clk 0:02:53.8]} 13... c5 {[%clk 0:02:50.9]} 14. O-O
{[%clk 0:02:40.1]} 14... Bb7 {[%clk 0:02:37.7]} 15. dxc5 {[%clk 0:02:38.2]}
15... Nbd7 {[%clk 0:02:37.9]} 16. Rd1 {[%clk 0:02:35.5]} 16... Qc7 {[%clk
0:02:37.1]} 17. e4 {[%clk 0:02:34.7]} 17... Nxc5 {[%clk 0:02:31]} 18. e5 {[%clk
0:02:32.7]} 18... Nfe4 {[%clk 0:02:17.3]} 19. Re1 {[%clk 0:02:31.7]} 19... Nxd3
{[%clk 0:02:16.7]} 20. Qxd3 {[%clk 0:02:32.6]} 20... Rfd8 {[%clk 0:02:14.7]} 21.
Qc2 {[%clk 0:02:31.8]} 21... Nc5 {[%clk 0:02:07.4]} 22. Bg5 {[%clk 0:02:27]}
22... Bxf3 {[%clk 0:01:53]} 23. Bxd8 {[%clk 0:02:25.3]} 23... Rxd8 {[%clk
0:01:53.9]} 24. gxf3 {[%clk 0:02:24.9]} 24... Rd2 {[%clk 0:01:54.4]} 25. Qb1
{[%clk 0:02:13.9]} 25... Nd3 {[%clk 0:01:35.3]} 26. Rd1 {[%clk 0:01:49.5]} 26...
c2 {[%clk 0:01:21.1]} 27. Rxd2 {[%clk 0:01:49.7]} 27... cxb1=Q+ {[%clk
0:01:21.4]} 28. Rxb1 {[%clk 0:01:50.6]} 28... Nxe5 {[%clk 0:01:21.7]} 29. Rbd1
{[%clk 0:01:50.2]} 29... Nxf3+ {[%clk 0:01:21.2]} 0-1

[Event "Early-Titled-Tuesday-Blitz-March-26-2024"]
[Site "Chess.com"]
[Date "2024.03.26"]
[Round "4"]
[White "Viktoker"]
[Black "rhwr"]
[Result "0-1"]
[WhiteElo "2514"]
[BlackElo "2318"]
[TimeControl "180+1"]
[EndTime "8:35:13 PDT"]
[Termination "rhwr won by resignation"]

1. e4 {[%clk 0:02:55.3]} 1... c5 {[%clk 0:02:59.5]} 2. Nf3 {[%clk 0:02:37.8]}
2... d6 {[%clk 0:02:59.1]} 3. d4 {[%clk 0:02:31.5]} 3... cxd4 {[%clk 0:02:58.6]}
4. Nxd4 {[%clk 0:02:32.4]} 4... Nf6 {[%clk 0:02:58]} 5. Nc3 {[%clk 0:02:31.5]}
5... e5 {[%clk 0:02:58.5]} 6. Ndb5 {[%clk 0:02:26.6]} 6... a6 {[%clk 0:02:58.3]}
7. Na3 {[%clk 0:02:27.1]} 7... b5 {[%clk 0:02:54]} 8. Nab1 {[%clk 0:02:27.7]}
8... Be7 {[%clk 0:02:52.7]} 9. a4 {[%clk 0:02:28]} 9... b4 {[%clk 0:02:50.7]}
10. Nd5 {[%clk 0:02:28.1]} 10... Bb7 {[%clk 0:02:47.3]} 11. Bc4 {[%clk
0:02:28.2]} 11... O-O {[%clk 0:02:46.3]} 12. O-O {[%clk 0:02:25.9]} 12... Nxe4
{[%clk 0:02:39.7]} 13. Qg4 {[%clk 0:02:04.4]} 13... Nf6 {[%clk 0:02:35.5]} 14.
Nxf6+ {[%clk 0:02:03.8]} 14... Bxf6 {[%clk 0:02:34.9]} 15. Nd2 {[%clk
0:02:03.6]} 15... d5 {[%clk 0:02:33.7]} 16. Be2 {[%clk 0:02:03.6]} 16... Nc6
{[%clk 0:02:26.5]} 17. Nf3 {[%clk 0:02:01.4]} 17... e4 {[%clk 0:02:15.5]} 18.
Ng5 {[%clk 0:02:00.5]} 18... Bc8 {[%clk 0:02:07.4]} 19. Qh5 {[%clk 0:02:00.2]}
19... h6 {[%clk 0:02:06]} 20. Nh3 {[%clk 0:02:00.5]} 20... Re8 {[%clk
0:01:54.1]} 21. Bf4 {[%clk 0:01:55]} 21... Bxb2 {[%clk 0:01:41.8]} 22. Rad1
{[%clk 0:01:54.4]} 22... Be5 {[%clk 0:01:38.2]} 23. f3 {[%clk 0:01:43.8]} 23...
Bxf4 {[%clk 0:01:24]} 24. Nxf4 {[%clk 0:01:44.7]} 24... Re5 {[%clk 0:01:24.3]}
25. Rxd5 {[%clk 0:01:37.2]} 25... Qxd5 {[%clk 0:01:20.4]} 26. Nxd5 {[%clk
0:01:35]} 26... Rxh5 {[%clk 0:01:20.1]} 27. fxe4 {[%clk 0:01:35.5]} 27... Re5
{[%clk 0:01:16.8]} 0-1

[Event "Early-Titled-Tuesday-Blitz-March-26-2024"]
[Site "Chess.com"]
[Date "2024.03.26"]
[Round "4"]
[White "Veleamater"]
[Black "Suleyman_Chess06"]
[Result "0-1"]
[WhiteElo "2409"]
[BlackElo "2691"]
[TimeControl "180+1"]
[EndTime "8:35:25 PDT"]
[Termination "Suleyman_Chess06 won by resignation"]

1. g3 {[%clk 0:03:00.9]} 1... d5 {[%clk 0:02:56.7]} 2. Bg2 {[%clk 0:03:01.1]}
2... Nf6 {[%clk 0:02:57.6]} 3. d3 {[%clk 0:03:01.4]} 3... Bf5 {[%clk 0:02:56]}
4. Nf3 {[%clk 0:03:01.8]} 4... e6 {[%clk 0:02:56.7]} 5. O-O {[%clk 0:03:00.8]}
5... h6 {[%clk 0:02:57.4]} 6. h3 {[%clk 0:03:01]} 6... c6 {[%clk 0:02:57.5]} 7.
Nc3 {[%clk 0:03:01.5]} 7... Be7 {[%clk 0:02:58.2]} 8. Nd2 {[%clk 0:03:01.4]}
8... Nbd7 {[%clk 0:02:58.5]} 9. e4 {[%clk 0:03:01.4]} 9... Bh7 {[%clk
0:02:59.1]} 10. f4 {[%clk 0:03:01.2]} 10... dxe4 {[%clk 0:02:59.4]} 11. dxe4
{[%clk 0:03:00.5]} 11... O-O {[%clk 0:02:59.1]} 12. a3 {[%clk 0:03:00.7]} 12...
Qc7 {[%clk 0:02:53.5]} 13. Nb3 {[%clk 0:02:59.3]} 13... Rad8 {[%clk 0:02:53.6]}
14. Qe2 {[%clk 0:02:59.1]} 14... Nc5 {[%clk 0:02:53]} 15. Nxc5 {[%clk 0:02:58]}
15... Bxc5+ {[%clk 0:02:53.9]} 16. Kh2 {[%clk 0:02:58.2]} 16... Bd4 {[%clk
0:02:52.6]} 17. Nd1 {[%clk 0:02:56.4]} 17... Rd7 {[%clk 0:02:48.6]} 18. g4
{[%clk 0:02:56]} 18... Rfd8 {[%clk 0:02:46.9]} 19. e5 {[%clk 0:02:19]} 19... Nd5
{[%clk 0:02:46.1]} 20. c3 {[%clk 0:02:18.4]} 20... Bb6 {[%clk 0:02:46.2]} 21.
Nf2 {[%clk 0:02:17.1]} 21... f6 {[%clk 0:02:38.1]} 22. c4 {[%clk 0:02:02.8]}
22... fxe5 {[%clk 0:02:18.6]} 23. cxd5 {[%clk 0:02:01.7]} 23... exf4 {[%clk
0:02:19.3]} 24. dxe6 {[%clk 0:01:50.1]} 24... f3+ {[%clk 0:02:18.2]} 25. Kh1
{[%clk 0:01:42.5]} 25... fxe2 {[%clk 0:02:17]} 0-1

[Event "Early-Titled-Tuesday-Blitz-March-26-2024"]
[Site "Chess.com"]
[Date "2024.03.26"]
[Round "4"]
[White "KnightmareJoker"]
[Black "mertfelin"]
[Result "1-0"]
[WhiteElo "2301"]
[BlackElo "2419"]
[TimeControl "180+1"]
[EndTime "8:35:34 PDT"]
[Termination "KnightmareJoker won by resignation"]

1. e4 {[%clk 0:03:00.9]} 1... e5 {[%clk 0:03:00.4]} 2. Nf3 {[%clk 0:03:01]} 2...
Nc6 {[%clk 0:03:00.8]} 3. d4 {[%clk 0:03:01]} 3... exd4 {[%clk 0:03:01.2]} 4.
Nxd4 {[%clk 0:03:01.3]} 4... Nf6 {[%clk 0:03:01.7]} 5. Nc3 {[%clk 0:03:01.5]}
5... Bb4 {[%clk 0:02:59.5]} 6. Nxc6 {[%clk 0:03:00.9]} 6... bxc6 {[%clk
0:02:59.9]} 7. Bd3 {[%clk 0:03:01.6]} 7... O-O {[%clk 0:02:58.2]} 8. O-O {[%clk
0:03:00.7]} 8... d5 {[%clk 0:02:58.5]} 9. exd5 {[%clk 0:03:00.9]} 9... cxd5
{[%clk 0:02:59.1]} 10. h3 {[%clk 0:02:59.6]} 10... Be6 {[%clk 0:02:54.6]} 11.
Bg5 {[%clk 0:02:56.3]} 11... Be7 {[%clk 0:02:51.6]} 12. Ne2 {[%clk 0:02:46.6]}
12... h6 {[%clk 0:02:50.4]} 13. Bh4 {[%clk 0:02:43.6]} 13... Rb8 {[%clk
0:02:44.6]} 14. b3 {[%clk 0:02:36.7]} 14... Ne4 {[%clk 0:02:41.5]} 15. Bxe4
{[%clk 0:02:23.4]} 15... Bxh4 {[%clk 0:02:40]} 16. Bf3 {[%clk 0:02:22]} 16...
Bf6 {[%clk 0:02:39.4]} 17. Rc1 {[%clk 0:02:20.4]} 17... c6 {[%clk 0:02:36.7]}
18. Nf4 {[%clk 0:02:18.4]} 18... Bf5 {[%clk 0:02:35.7]} 19. Bg4 {[%clk
0:02:10.6]} 19... Bh7 {[%clk 0:02:31.1]} 20. Nh5 {[%clk 0:02:06.5]} 20... Bg5
{[%clk 0:02:27.7]} 21. f4 {[%clk 0:02:02.8]} 21... Be7 {[%clk 0:02:25.3]} 22. f5
{[%clk 0:01:58.7]} 22... Bc5+ {[%clk 0:02:23.5]} 23. Kh1 {[%clk 0:01:58.2]}
23... Qg5 {[%clk 0:02:22.8]} 24. f6 {[%clk 0:01:29.8]} 24... gxf6 {[%clk
0:02:05.3]} 25. Nxf6+ {[%clk 0:01:27.2]} 25... Kh8 {[%clk 0:02:05.6]} 26. Nd7
{[%clk 0:01:15.5]} 26... Bd6 {[%clk 0:02:01.1]} 27. Qd4+ {[%clk 0:01:01.6]}
27... f6 {[%clk 0:01:45.6]} 28. Nxb8 {[%clk 0:00:55.1]} 28... Bxb8 {[%clk
0:01:43.7]} 29. Rce1 {[%clk 0:00:53.7]} 29... Be5 {[%clk 0:01:43.3]} 30. Rxe5
{[%clk 0:00:52.5]} 1-0

[Event "Early-Titled-Tuesday-Blitz-March-26-2024"]
[Site "Chess.com"]
[Date "2024.03.26"]
[Round "4"]
[White "SlavenPastar"]
[Black "crescentmoon2411"]
[Result "0-1"]
[WhiteElo "2607"]
[BlackElo "2889"]
[TimeControl "180+1"]
[EndTime "8:35:36 PDT"]
[Termination "crescentmoon2411 won by resignation"]

1. Nf3 {[%clk 0:03:00.9]} 1... d5 {[%clk 0:02:58.7]} 2. g3 {[%clk 0:03:01.3]}
2... g6 {[%clk 0:02:58.5]} 3. Bg2 {[%clk 0:03:01.2]} 3... Bg7 {[%clk 0:02:59.4]}
4. d4 {[%clk 0:03:01.4]} 4... c6 {[%clk 0:03:00.2]} 5. Nbd2 {[%clk 0:02:59.9]}
5... Nd7 {[%clk 0:03:00.2]} 6. c4 {[%clk 0:03:00.2]} 6... Ngf6 {[%clk
0:03:00.3]} 7. O-O {[%clk 0:02:59.9]} 7... O-O {[%clk 0:03:00.6]} 8. b3 {[%clk
0:03:00.6]} 8... a5 {[%clk 0:03:00.7]} 9. Bb2 {[%clk 0:03:00.9]} 9... Ne4 {[%clk
0:03:00.8]} 10. Nxe4 {[%clk 0:02:58.9]} 10... dxe4 {[%clk 0:03:01.7]} 11. Ng5
{[%clk 0:02:46.7]} 11... Nc5 {[%clk 0:02:59.8]} 12. Nxe4 {[%clk 0:02:42.5]}
12... Ne6 {[%clk 0:02:51.7]} 13. e3 {[%clk 0:02:33.5]} 13... c5 {[%clk 0:02:52]}
14. Qe2 {[%clk 0:02:04.9]} 14... cxd4 {[%clk 0:02:51.8]} 15. Rad1 {[%clk
0:02:02.1]} 15... Qb6 {[%clk 0:02:50.7]} 16. exd4 {[%clk 0:01:45.4]} 16... Nxd4
{[%clk 0:02:51.6]} 17. Qe3 {[%clk 0:01:30.3]} 17... e5 {[%clk 0:02:51.1]} 18.
Nc3 {[%clk 0:01:27.1]} 18... Bg4 {[%clk 0:02:49]} 19. Rd2 {[%clk 0:01:19.2]}
19... Rfe8 {[%clk 0:02:46.7]} 20. h3 {[%clk 0:01:18.2]} 20... Be6 {[%clk
0:02:45.7]} 21. Nd5 {[%clk 0:01:16]} 21... Qc5 {[%clk 0:02:45.4]} 22. Rfd1
{[%clk 0:01:09.3]} 22... a4 {[%clk 0:02:44]} 23. b4 {[%clk 0:00:54.3]} 23...
Qxc4 {[%clk 0:02:42.8]} 24. Nb6 {[%clk 0:00:53.9]} 24... Qxb4 {[%clk 0:02:43]}
25. Nxa8 {[%clk 0:00:53.6]} 25... Rxa8 {[%clk 0:02:43.8]} 26. f4 {[%clk
0:00:42.5]} 26... a3 {[%clk 0:02:38.4]} 27. Bc3 {[%clk 0:00:39.2]} 27... Qc5
{[%clk 0:02:26.7]} 28. fxe5 {[%clk 0:00:37.6]} 28... Nf3+ {[%clk 0:02:26]} 29.
Kf2 {[%clk 0:00:34.2]} 29... Qxe3+ {[%clk 0:02:25.8]} 30. Kxe3 {[%clk
0:00:33.6]} 30... Nxd2 {[%clk 0:02:26.6]} 31. Rxd2 {[%clk 0:00:33.7]} 31... Bh6+
{[%clk 0:02:27]} 32. Ke2 {[%clk 0:00:28.8]} 32... Bxd2 {[%clk 0:02:27.9]} 33.
Kxd2 {[%clk 0:00:29.7]} 33... Bxa2 {[%clk 0:02:26.9]} 34. Bxb7 {[%clk
0:00:29.6]} 34... Ra7 {[%clk 0:02:26.5]} 35. Be4 {[%clk 0:00:28.5]} 35... Be6
{[%clk 0:02:26.6]} 0-1

[Event "Early-Titled-Tuesday-Blitz-March-26-2024"]
[Site "Chess.com"]
[Date "2024.03.26"]
[Round "4"]
[White "Mikhail_Bryakin"]
[Black "Jospem"]
[Result "0-1"]
[WhiteElo "2856"]
[BlackElo "3091"]
[TimeControl "180+1"]
[EndTime "8:35:52 PDT"]
[Termination "Jospem won by resignation"]

1. c4 {[%clk 0:02:58.5]} 1... c5 {[%clk 0:02:59.9]} 2. Nc3 {[%clk 0:02:58]} 2...
Nc6 {[%clk 0:02:59.8]} 3. Nf3 {[%clk 0:02:58.4]} 3... g6 {[%clk 0:02:55.5]} 4.
g3 {[%clk 0:02:56.1]} 4... Bg7 {[%clk 0:02:54.2]} 5. Bg2 {[%clk 0:02:56.8]} 5...
d6 {[%clk 0:02:54.7]} 6. O-O {[%clk 0:02:57.2]} 6... e6 {[%clk 0:02:55]} 7. e4
{[%clk 0:02:51.3]} 7... Nge7 {[%clk 0:02:54.7]} 8. d3 {[%clk 0:02:51.4]} 8...
O-O {[%clk 0:02:54.7]} 9. Be3 {[%clk 0:02:49.2]} 9... Nd4 {[%clk 0:02:54.5]} 10.
Qd2 {[%clk 0:02:40.4]} 10... Nec6 {[%clk 0:02:54]} 11. Ne2 {[%clk 0:02:36.1]}
11... Nxf3+ {[%clk 0:02:50.8]} 12. Bxf3 {[%clk 0:02:36.2]} 12... Qa5 {[%clk
0:02:51.1]} 13. Qxa5 {[%clk 0:02:34.4]} 13... Nxa5 {[%clk 0:02:52]} 14. Rab1
{[%clk 0:02:35]} 14... Nc6 {[%clk 0:02:51.8]} 15. Bg2 {[%clk 0:02:34.3]} 15...
Nb4 {[%clk 0:02:49]} 16. Nc1 {[%clk 0:02:33.8]} 16... Nc2 {[%clk 0:02:41.9]} 17.
Bf4 {[%clk 0:02:31.7]} 17... Rd8 {[%clk 0:02:36.3]} 18. Rd1 {[%clk 0:02:32]}
18... Nd4 {[%clk 0:02:35.9]} 19. Kf1 {[%clk 0:02:29.5]} 19... a6 {[%clk
0:02:29.1]} 20. Ne2 {[%clk 0:02:29.8]} 20... Nc6 {[%clk 0:02:27.6]} 21. Be3
{[%clk 0:02:27.4]} 21... b5 {[%clk 0:02:24]} 22. e5 {[%clk 0:02:21.2]} 22... d5
{[%clk 0:02:20.5]} 23. Bd4 {[%clk 0:02:14.3]} 23... Nxd4 {[%clk 0:02:19.2]} 24.
Nxd4 {[%clk 0:00:55.9]} 24... cxd4 {[%clk 0:02:16.4]} 25. cxd5 {[%clk
0:00:56.1]} 25... exd5 {[%clk 0:02:17.3]} 26. f4 {[%clk 0:00:56.7]} 26... Bf5
{[%clk 0:02:15.1]} 27. Ke2 {[%clk 0:00:55.6]} 27... f6 {[%clk 0:02:13.7]} 28.
exf6 {[%clk 0:00:55.1]} 28... Bxf6 {[%clk 0:02:14.6]} 29. Rbc1 {[%clk
0:00:55.7]} 29... Re8+ {[%clk 0:02:14.9]} 30. Kf2 {[%clk 0:00:53.4]} 30... Rad8
{[%clk 0:02:15]} 31. Rc5 {[%clk 0:00:53.1]} 31... Kg7 {[%clk 0:02:14.7]} 32.
Rc7+ {[%clk 0:00:46.1]} 32... Re7 {[%clk 0:02:14.6]} 33. Rxe7+ {[%clk
0:00:45.3]} 33... Bxe7 {[%clk 0:02:15.5]} 34. h3 {[%clk 0:00:44.3]} 34... h5
{[%clk 0:02:15.4]} 35. Kf3 {[%clk 0:00:44.7]} 35... Rc8 {[%clk 0:02:08.5]} 36.
g4 {[%clk 0:00:44.1]} 36... hxg4+ {[%clk 0:02:09.4]} 37. hxg4 {[%clk 0:00:45]}
37... Bd7 {[%clk 0:02:09.8]} 38. Rd2 {[%clk 0:00:45.4]} 38... Bd6 {[%clk
0:02:08.4]} 39. Re2 {[%clk 0:00:43.5]} 39... Rf8 {[%clk 0:02:08.5]} 40. f5
{[%clk 0:00:43.2]} 40... gxf5 {[%clk 0:02:09.4]} 41. g5 {[%clk 0:00:43.2]} 41...
f4 {[%clk 0:02:07.9]} 42. Kf2 {[%clk 0:00:41.4]} 42... f3 {[%clk 0:02:08.4]} 0-1

[Event "Early-Titled-Tuesday-Blitz-March-26-2024"]
[Site "Chess.com"]
[Date "2024.03.26"]
[Round "4"]
[White "yaguigor"]
[Black "rezamahdavi2008"]
[Result "0-1"]
[WhiteElo "2584"]
[BlackElo "2849"]
[TimeControl "180+1"]
[EndTime "8:35:56 PDT"]
[Termination "rezamahdavi2008 won by resignation"]

1. e4 {[%clk 0:03:00.9]} 1... c5 {[%clk 0:03:00]} 2. Nf3 {[%clk 0:02:59]} 2...
d6 {[%clk 0:03:00.4]} 3. d4 {[%clk 0:02:59.5]} 3... cxd4 {[%clk 0:03:00.5]} 4.
Nxd4 {[%clk 0:03:00.4]} 4... Nf6 {[%clk 0:02:59.6]} 5. Nc3 {[%clk 0:03:01.1]}
5... a6 {[%clk 0:03:00.2]} 6. f3 {[%clk 0:03:01.4]} 6... e5 {[%clk 0:02:57.1]}
7. Nb3 {[%clk 0:03:01.6]} 7... Be6 {[%clk 0:02:53.9]} 8. Be3 {[%clk 0:03:02]}
8... Nbd7 {[%clk 0:02:52.8]} 9. Qd2 {[%clk 0:03:02.2]} 9... Be7 {[%clk 0:02:51]}
10. g4 {[%clk 0:02:59.6]} 10... b5 {[%clk 0:02:51]} 11. g5 {[%clk 0:02:58.7]}
11... b4 {[%clk 0:02:51.1]} 12. Ne2 {[%clk 0:02:56.3]} 12... Nh5 {[%clk
0:02:51]} 13. Ng3 {[%clk 0:02:55.3]} 13... Nf4 {[%clk 0:02:50.5]} 14. h4 {[%clk
0:02:48.3]} 14... a5 {[%clk 0:02:39.2]} 15. Bxf4 {[%clk 0:02:26.8]} 15... exf4
{[%clk 0:02:39.4]} 16. Nf5 {[%clk 0:02:25.5]} 16... Bxf5 {[%clk 0:02:26.6]} 17.
exf5 {[%clk 0:02:24.4]} 17... O-O {[%clk 0:02:26.3]} 18. Qxf4 {[%clk 0:02:17.2]}
18... a4 {[%clk 0:02:24.4]} 19. Nd4 {[%clk 0:02:15.9]} 19... a3 {[%clk
0:02:18.4]} 20. b3 {[%clk 0:02:01.6]} 20... Qc7 {[%clk 0:02:14.2]} 21. Bc4
{[%clk 0:01:46.5]} 21... Ne5 {[%clk 0:02:13.7]} 22. f6 {[%clk 0:01:43.6]} 22...
d5 {[%clk 0:02:11.1]} 23. O-O {[%clk 0:01:27.9]} 23... Bc5 {[%clk 0:01:53.3]}
24. Rae1 {[%clk 0:01:12]} 24... Rfe8 {[%clk 0:01:46.5]} 25. Bd3 {[%clk
0:01:00.2]} 25... Qb6 {[%clk 0:01:41.4]} 26. Kg2 {[%clk 0:00:52.2]} 26... Bxd4
{[%clk 0:01:40.8]} 27. fxg7 {[%clk 0:00:52.4]} 27... Bc3 {[%clk 0:01:38.6]} 28.
Re2 {[%clk 0:00:50.1]} 28... Nxd3 {[%clk 0:01:38.3]} 29. Rxe8+ {[%clk 0:00:48]}
29... Rxe8 {[%clk 0:01:39.2]} 30. cxd3 {[%clk 0:00:48.2]} 30... Re2+ {[%clk
0:01:39.7]} 31. Kh3 {[%clk 0:00:44.9]} 31... Qe6+ {[%clk 0:01:40]} 0-1

[Event "Early-Titled-Tuesday-Blitz-March-26-2024"]
[Site "Chess.com"]
[Date "2024.03.26"]
[Round "4"]
[White "Savagelittlemole"]
[Black "Resignify"]
[Result "1-0"]
[WhiteElo "2470"]
[BlackElo "2264"]
[TimeControl "180+1"]
[EndTime "8:36:02 PDT"]
[Termination "Savagelittlemole won by checkmate"]

1. d4 {[%clk 0:03:00.9]} 1... Nf6 {[%clk 0:02:59.8]} 2. Nf3 {[%clk 0:02:59.8]}
2... g6 {[%clk 0:02:56.8]} 3. Nc3 {[%clk 0:02:59.8]} 3... Bg7 {[%clk 0:02:54.7]}
4. e4 {[%clk 0:02:58.6]} 4... d6 {[%clk 0:02:54.9]} 5. h3 {[%clk 0:02:57.5]}
5... O-O {[%clk 0:02:53.4]} 6. Bd3 {[%clk 0:02:57.9]} 6... Nc6 {[%clk
0:02:49.6]} 7. Be3 {[%clk 0:02:55.1]} 7... a6 {[%clk 0:02:48.3]} 8. Qd2 {[%clk
0:02:53.9]} 8... b5 {[%clk 0:02:47.7]} 9. Bh6 {[%clk 0:02:52]} 9... e5 {[%clk
0:02:39]} 10. d5 {[%clk 0:02:50.5]} 10... Ne7 {[%clk 0:02:18.4]} 11. Ne2 {[%clk
0:02:47.7]} 11... Nexd5 {[%clk 0:01:41.6]} 12. Bxg7 {[%clk 0:02:44.8]} 12...
Kxg7 {[%clk 0:01:39]} 13. exd5 {[%clk 0:02:43.7]} 13... e4 {[%clk 0:01:39.3]}
14. Bxe4 {[%clk 0:02:37.6]} 14... Nxe4 {[%clk 0:01:39.2]} 15. Qd4+ {[%clk
0:02:38.1]} 15... Nf6 {[%clk 0:01:39.1]} 16. O-O-O {[%clk 0:02:37.3]} 16... Kg8
{[%clk 0:01:31]} 17. h4 {[%clk 0:02:34.6]} 17... Bg4 {[%clk 0:01:28.3]} 18. Rd3
{[%clk 0:02:28.7]} 18... Re8 {[%clk 0:01:18.5]} 19. Ng3 {[%clk 0:02:28.4]} 19...
h5 {[%clk 0:01:16.4]} 20. Ng5 {[%clk 0:02:24.7]} 20... Nh7 {[%clk 0:01:05.3]}
21. Nxh7 {[%clk 0:02:18.2]} 21... Kxh7 {[%clk 0:01:05]} 22. Ne4 {[%clk
0:02:17.3]} 22... Rxe4 {[%clk 0:00:54.3]} 23. Qxe4 {[%clk 0:02:18.2]} 23... Bf5
{[%clk 0:00:54]} 24. Qf4 {[%clk 0:02:17.7]} 24... Bxd3 {[%clk 0:00:51.7]} 25.
Qxf7+ {[%clk 0:02:16.8]} 25... Kh6 {[%clk 0:00:48.1]} 26. g4 {[%clk 0:02:00.1]}
26... hxg4 {[%clk 0:00:35.7]} 27. h5 {[%clk 0:01:59.4]} 27... Qg5+ {[%clk
0:00:28.9]} 28. Kb1 {[%clk 0:01:46.9]} 28... Be4 {[%clk 0:00:28.5]} 29. hxg6+
{[%clk 0:01:44.3]} 29... Bxh1 {[%clk 0:00:20.5]} 30. Qh7# {[%clk 0:01:44]} 1-0

[Event "Early-Titled-Tuesday-Blitz-March-26-2024"]
[Site "Chess.com"]
[Date "2024.03.26"]
[Round "4"]
[White "JoliyRoger"]
[Black "Aslanov_Umid"]
[Result "0-1"]
[WhiteElo "2414"]
[BlackElo "2621"]
[TimeControl "180+1"]
[EndTime "8:36:06 PDT"]
[Termination "Aslanov_Umid won by resignation"]

1. d4 {[%clk 0:02:55.2]} 1... d5 {[%clk 0:03:00.2]} 2. Nf3 {[%clk 0:02:54.8]}
2... Nf6 {[%clk 0:03:00.2]} 3. c4 {[%clk 0:02:52.4]} 3... e6 {[%clk 0:03:00.7]}
4. Nc3 {[%clk 0:02:52.8]} 4... Be7 {[%clk 0:03:00.7]} 5. e3 {[%clk 0:02:53.4]}
5... O-O {[%clk 0:02:59.7]} 6. b3 {[%clk 0:02:53.5]} 6... b6 {[%clk 0:02:56.3]}
7. Bb2 {[%clk 0:02:53.2]} 7... Bb7 {[%clk 0:02:56.8]} 8. Bd3 {[%clk 0:02:53.9]}
8... c5 {[%clk 0:02:57.4]} 9. O-O {[%clk 0:02:54.5]} 9... Nbd7 {[%clk
0:02:57.4]} 10. cxd5 {[%clk 0:02:55.2]} 10... exd5 {[%clk 0:02:57.6]} 11. Qe2
{[%clk 0:02:55.7]} 11... Re8 {[%clk 0:02:56.4]} 12. Rfd1 {[%clk 0:02:53.6]}
12... cxd4 {[%clk 0:02:35.5]} 13. Nxd4 {[%clk 0:02:52.9]} 13... Bc5 {[%clk
0:02:19.9]} 14. Bf5 {[%clk 0:02:26.4]} 14... Ne5 {[%clk 0:02:13.8]} 15. Rac1
{[%clk 0:02:20.6]} 15... Qe7 {[%clk 0:02:01.1]} 16. Bh3 {[%clk 0:02:06.7]} 16...
Rad8 {[%clk 0:01:37.8]} 17. Rc2 {[%clk 0:02:01.5]} 17... Bxd4 {[%clk 0:01:35]}
18. Rxd4 {[%clk 0:01:21.3]} 18... Nc6 {[%clk 0:01:33.7]} 19. Rf4 {[%clk
0:01:21.8]} 19... d4 {[%clk 0:01:29.4]} 20. exd4 {[%clk 0:00:33.9]} 20... Qd6
{[%clk 0:01:29.3]} 21. Qd2 {[%clk 0:00:22.8]} 21... Qxf4 {[%clk 0:01:25.9]} 0-1